bitfinex-derivatives/quotes_ETHF0:USTF0_20210405
["timestamp","ask_amount","ask_price","bid_price","bid_amount"]
[1617582386529,13.0,2069.0,2068.7,34.90695]
[1617582387430,2.90695,2068.8,2068.7,4.90695]
[1617582388031,2.90695,2068.8,2068.7,2.90695]
[1617582388431,2.90695,2068.8,2068.4,8.41841901]
[1617582388631,2.90695,2068.8,2068.5,7.29617401]
[1617582389431,2.90695,2068.8,2068.2,2.571]
[1617582389432,2.90695,2068.8,2068.4,7.29646369]
[1617582389832,2.90695,2068.8,2068.7,6.17403505]
[1617582390433,2.90695,2068.8,2068.7,6.35147289]
[1617582390632,2.90695,2068.8,2068.7,0.17743784]
[1617582391032,2.90695,2068.8,2068.5,0.17746779]
[1617582392333,2.90695,2068.8,2068.4,0.17746035]
[1617582393133,2.90695,2068.8,2068.7,6.17161405]
[1617582393737,2.90695,2068.8,2068.7,6.34853272]
[1617582394134,2.90695,2068.8,2068.7,0.17691867]
[1617582394735,2.90695,2068.8,2068.5,0.17691016]
[1617582398641,59.9895,2068.7,2068.5,0.17691016]
[1617582398839,59.9895,2068.7,2068.4,0.17698865]
[1617582399141,59.9895,2068.7,2068.5,7.30206755]
[1617582399439,59.9895,2068.7,2068.6,0.17703846]
[1617582400039,59.9895,2068.7,2068.5,0.17708107]
[1617582403041,59.9895,2068.7,2068.4,7.30225816]
[1617582403443,59.9895,2068.7,2068.5,0.17698677]
[1617582405644,2.90695,2068.6,2068.5,0.17698677]
[1617582405844,3.88035,2068.6,2068.5,0.17698677]
[1617582407145,2.90695,2068.6,2068.5,0.17698677]
[1617582410147,2.90695,2068.6,2068.3,0.1767516]
[1617582417051,59.9895,2068.7,2068.3,0.1767516]
[1617582417751,2.90695,2068.4,2068.3,0.1767516]
[1617582417953,5.26105,2068.4,2068.3,0.1767516]
[1617582419255,5.26105,2068.4,2068.3,7.49326711]
[1617582419454,5.26105,2068.4,2068.3,7.31651551]
[1617582419854,5.26105,2068.4,2068.2,2.571]
[1617582419855,5.26105,2068.4,2068.2,9.88768531]
[1617582420054,5.26105,2068.4,2068.2,7.31668531]
[1617582420255,5.26105,2068.4,2068.0,7.31695302]
[1617582420454,5.26105,2068.4,2068.2,8.47769336]
[1617582420654,30.0,2068.3,2068.2,2.25429336]
[1617582420860,30.0,2068.3,2067.7,12.17952689]
[1617582420861,30.9557,2068.3,2067.7,12.17952689]
[1617582421256,30.9557,2068.3,2067.8,0.17598128]
[1617582421657,2.90695,2067.9,2067.8,0.17598128]
[1617582421856,4.92125,2067.9,2067.8,0.17598128]
[1617582422959,4.92125,2067.9,2067.7,0.17628445]
[1617582425662,4.92125,2067.9,2067.4,0.17613351]
[1617582426463,4.92125,2067.9,2067.3,9.76455252]
[1617582426864,4.92125,2067.9,2067.4,0.17610737]
[1617582427667,2.90695,2067.5,2067.3,0.17639101]
[1617582427865,2.90695,2067.5,2067.3,9.58848375]
[1617582428265,2.90695,2067.5,2067.4,9.76416274]
[1617582429265,72.97285,2067.5,2067.4,9.76416274]
[1617582434770,72.97285,2067.5,2067.4,0.17617733]
[1617582435069,72.97285,2067.5,2067.3,0.17590152]
[1617582435372,72.97285,2067.5,2067.4,9.5900464]
[1617582435973,72.97285,2067.5,2067.4,9.76606165]
[1617582439271,72.97285,2067.5,2067.4,0.17601525]
[1617582439572,72.97285,2067.5,2067.3,0.1755117]
[1617582439773,72.97285,2067.5,2067.4,2.90695]
[1617582440173,72.97285,2067.5,2067.3,0.1755117]
[1617582440376,72.97285,2067.5,2067.4,0.17541248]
[1617582440573,72.97285,2067.5,2067.3,0.17539196]
[1617582440975,72.97285,2067.5,2067.4,0.17521813]
[1617582441175,72.97285,2067.5,2067.4,9.76118074]
[1617582441377,72.97285,2067.5,2067.4,9.58596261]
[1617582441573,72.97285,2067.5,2067.4,9.76126095]
[1617582442177,72.97285,2067.5,2067.4,0.17529834]
[1617582442878,72.97285,2067.5,2067.2,12.15361159]
[1617582443277,72.97285,2067.5,2067.3,0.17589616]
[1617582446577,73.94095,2067.5,2067.3,0.17589616]
[1617582446877,72.97285,2067.5,2067.3,0.17589616]
[1617582451285,75.47955,2067.5,2067.3,0.17589616]
[1617582451785,75.47955,2067.5,2067.4,8.45317544]
[1617582451985,75.47955,2067.5,2067.4,8.62940996]
[1617582452785,75.47955,2067.5,2067.4,0.17623452]
[1617582453085,75.47955,2067.5,2067.3,0.17615415]
[1617582453285,72.97285,2067.5,2067.3,0.17615415]
[1617582454485,72.97285,2067.5,2067.4,8.45318599]
[1617582454785,73.92825,2067.5,2067.4,8.62909388]
[1617582454987,72.97285,2067.5,2067.4,6.22959388]
[1617582457385,72.97285,2067.5,2067.4,8.42299388]
[1617582457584,13.3506,2068.5,2067.4,8.42299388]
[1617582457585,13.3506,2068.5,2067.4,2.36930789]
[1617582457985,13.3506,2068.5,2067.8,2.90695]
[1617582458385,13.3506,2068.5,2068.1,7.32542693]
[1617582459185,13.3506,2068.5,2068.4,6.19844082]
[1617582459886,13.3506,2068.5,2068.4,6.14514082]
[1617582460086,16.25755,2068.5,2068.4,6.14514082]
[1617582461089,16.25755,2068.5,2068.4,5.53004082]
[1617582461989,16.25755,2068.5,2068.1,7.32561003]
[1617582462192,2.90695,2068.2,2068.1,7.32561003]
[1617582462790,2.90695,2068.2,2068.0,7.32552878]
[1617582463190,4.77485,2068.2,2068.0,7.32552878]
[1617582463391,4.77485,2068.2,2068.1,7.32561334]
[1617582464193,4.77485,2068.2,2068.0,7.32571972]
[1617582465799,2.90695,2068.2,2068.0,7.32571972]
[1617582466694,2.90695,2068.2,2068.1,7.32561045]
[1617582468000,3.87065,2068.2,2068.1,7.32561045]
[1617582468200,2.90695,2068.2,2068.1,7.32561045]
[1617582470913,2.90695,2068.2,2068.0,7.32799184]
[1617582472415,2.90695,2068.2,2067.8,11.04010843]
[1617582473516,2.90695,2068.2,2067.8,8.46910843]
[1617582474019,3.86235,2068.2,2068.1,7.34002634]
[1617582474216,2.90695,2068.2,2068.1,7.34002634]
[1617582475319,3.87685,2068.2,2068.1,7.34002634]
[1617582476720,3.87685,2068.2,2068.0,7.34028232]
[1617582478423,58.6288,2068.1,2068.0,7.34028232]
[1617582478623,60.3043,2068.1,2068.0,7.23968232]
[1617582479924,58.6288,2068.1,2068.0,7.23968232]
[1617582480624,58.6288,2068.1,2067.6,8.46956312]
[1617582480925,58.6288,2068.1,2067.7,8.64437485]
[1617582481727,58.6288,2068.1,2067.8,0.17683428]
[1617582482325,2.90695,2067.9,2067.8,0.17683428]
[1617582484528,5.42125,2067.9,2067.8,0.17683428]
[1617582485229,6.38285,2067.9,2067.8,0.17683428]
[1617582485629,5.42125,2067.9,2067.8,0.17683428]
[1617582485829,2.90695,2067.9,2067.8,0.17683428]
[1617582486729,3.88285,2067.9,2067.7,8.46757051]
[1617582487329,2.90695,2067.9,2067.7,8.46757051]
[1617582487729,2.90695,2067.9,2067.8,0.17740464]
[1617582488429,2.90695,2067.9,2067.7,8.46757051]
[1617582489129,2.90695,2067.9,2067.6,8.47203082]
[1617582489932,2.90695,2067.9,2067.5,8.47233498]
[1617582490333,58.6288,2068.1,2067.6,0.17808044]
[1617582490835,58.6288,2068.1,2067.8,7.33949058]
[1617582492534,2.90695,2067.9,2067.8,7.33949058]
[1617582494235,2.90695,2067.9,2067.6,8.47536958]
[1617582495237,2.90695,2067.9,2067.5,8.47551258]
[1617582496241,2.90695,2067.9,2067.6,8.47546965]
[1617582497546,2.90695,2067.9,2067.5,8.47563041]
[1617582498542,2.90695,2067.6,2067.5,8.47563041]
[1617582498742,5.62215,2067.6,2067.5,8.47563041]
[1617582499745,5.62215,2067.6,2067.5,8.32053041]
[1617582500247,5.62215,2067.6,2067.4,2.571]
[1617582507054,35.62215,2067.6,2067.4,1.5009]
[1617582507459,35.62215,2067.6,2067.4,0.0303]
[1617582507658,35.62215,2067.6,2067.5,7.35547263]
[1617582507857,35.62215,2067.6,2066.7,12.18969497]
[1617582508059,35.62215,2067.6,2066.7,2.571]
[1617582508658,5.02965,2066.8,2066.7,2.571]
[1617582509259,5.02965,2066.8,2066.3,10.61942864]
[1617582509461,5.02965,2066.8,2066.3,1.0]
[1617582509660,5.02965,2066.8,2066.4,0.17968521]
[1617582509861,5.99755,2066.8,2066.4,0.17968521]
[1617582510061,5.99755,2066.8,2066.6,8.48936708]
[1617582511564,35.99755,2066.8,2066.6,5.04086708]
[1617582511864,35.99755,2066.8,2066.3,1.0]
[1617582512664,2.90695,2066.4,2066.3,1.0]
[1617582513965,3.86535,2066.4,2066.3,1.0]
[1617582514866,2.90695,2066.4,2066.3,0.0001]
[1617582515768,2.90695,2066.4,2065.3,0.17906559]
[1617582515969,80.8126,2065.7,2065.3,0.17906559]
[1617582516769,2.90695,2065.4,2065.3,0.17906559]
[1617582517369,5.40525,2065.4,2065.3,0.17906559]
[1617582517968,5.40525,2065.4,2065.2,4.571]
[1617582519770,2.90695,2065.4,2065.2,4.571]
[1617582520673,2.90695,2065.4,2065.2,14.15267309]
[1617582520873,80.8126,2065.7,2065.3,3.08559015]
[1617582521273,80.8126,2065.7,2065.3,33.08559015]
[1617582521475,80.8126,2065.7,2065.4,2.17864299]
[1617582521675,80.8126,2065.7,2065.5,30.0]
[1617582521876,80.8126,2065.7,2065.6,34.3877]
[1617582522076,80.8126,2065.7,2065.6,44.14602548]
[1617582522478,80.8126,2065.7,2065.6,34.56607043]
[1617582522877,2.90695,2066.4,2065.6,37.47302043]
[1617582523276,2.90695,2066.4,2066.1,8.45223113]
[1617582523476,2.90695,2066.4,2066.2,4.0744]
[1617582523678,2.90695,2066.4,2066.2,12.52477512]
[1617582524779,2.90695,2066.4,2066.3,2.90695]
[1617582525179,80.7658,2067.2,2066.3,32.90695]
[1617582525380,13.593,2067.6,2066.3,32.90695]
[1617582525578,13.593,2067.6,2066.3,34.90695]
[1617582525779,13.593,2067.6,2067.4,5.06961502]
[1617582525979,112.0196,2068.2,2067.4,7.52821502]
[1617582526181,13.9469,2068.2,2067.4,8.65371741]
[1617582526379,30.0,2068.8,2067.4,8.65371741]
[1617582526580,30.0,2068.8,2067.6,5.06856756]
[1617582526779,30.0,2068.8,2067.5,6.19470555]
[1617582526780,2.90695,2067.7,2067.5,6.19470555]
[1617582527782,2.90695,2067.7,2067.1,7.32101565]
[1617582527983,2.90695,2067.7,2067.5,6.19471639]
[1617582529788,2.90695,2067.7,2067.6,6.19466237]
[1617582531090,2.90695,2067.7,2066.7,10.44732575]
[1617582531091,2.90695,2067.7,2067.4,6.19494813]
[1617582531488,2.90695,2067.7,2067.6,5.06868133]
[1617582533493,3.87415,2067.7,2067.6,5.06868133]
[1617582534093,3.87415,2067.7,2067.5,6.19484172]
[1617582534596,2.90695,2067.7,2067.5,6.19484172]
[1617582534795,5.29625,2067.7,2067.5,6.19484172]
[1617582535597,5.29625,2067.7,2067.6,5.07096364]
[1617582536898,2.90695,2067.7,2067.6,5.07096364]
[1617582537399,2.90695,2067.7,2067.4,6.19784445]
[1617582538200,2.90695,2067.7,2067.5,6.19733168]
[1617582539400,2.90695,2067.7,2067.6,5.07053577]
[1617582539599,3.88025,2067.7,2067.6,5.07053577]
[1617582540000,2.90695,2067.7,2067.6,5.07053577]
[1617582540201,5.25165,2067.7,2067.5,5.07081722]
[1617582541606,6.21725,2067.7,2067.5,5.07081722]
[1617582541805,2.90695,2067.7,2067.5,5.07081722]
[1617582542205,2.90695,2067.7,2067.6,5.07054748]
[1617582542806,2.90695,2067.7,2067.5,5.0707344]
[1617582543008,5.52895,2067.7,2067.5,5.0707344]
[1617582544309,5.52895,2067.7,2067.6,5.07081823]
[1617582547013,2.90695,2067.7,2067.6,5.07081823]
[1617582547814,2.90695,2067.7,2067.5,6.20106968]
[1617582548315,2.90695,2067.7,2067.4,6.20113117]
[1617582548716,2.90695,2067.7,2067.5,6.20115715]
[1617582549117,2.90695,2067.7,2067.6,6.20102162]
[1617582550216,2.90695,2067.7,2067.5,6.20093121]
[1617582551418,3.88045,2067.7,2067.5,6.20093121]
[1617582552020,3.88045,2067.7,2067.6,5.0739458]
[1617582552419,3.88045,2067.7,2067.5,5.07397449]
[1617582554820,2.90695,2067.7,2067.6,5.07558884]
[1617582558424,2.90695,2067.7,2067.5,6.2029365]
[1617582558623,2.90695,2067.7,2067.5,8.2029365]
[1617582558824,2.90695,2067.7,2067.5,9.33728634]
[1617582559023,2.90695,2067.7,2067.6,2.90695]
[1617582559226,2.90695,2067.7,2067.6,12.24392784]
[1617582559423,2.90695,2067.7,2067.6,14.80122784]
[1617582559624,2.90695,2067.7,2067.6,7.46425]
[1617582561328,2.90695,2067.7,2067.6,7.64267043]
[1617582561833,2.90695,2067.7,2067.6,16.10695206]
[1617582562230,71.0479,2068.9,2067.6,16.10695206]
[1617582562430,71.0479,2068.9,2067.6,46.10695206]
[1617582562631,71.0479,2068.9,2068.7,5.07849107]
[1617582562830,57.5723,2068.9,2068.7,7.69999107]
[1617582563031,57.5723,2068.9,2068.7,2.6215]
[1617582563230,2.90695,2068.8,2068.7,2.6215]
[1617582564835,2.90695,2068.8,2068.7,6.20663817]
[1617582565737,2.90695,2068.8,2068.7,5.0737463]
[1617582566837,2.90695,2068.8,2068.6,5.07373195]
[1617582568238,2.90695,2068.8,2068.5,5.0739032]
[1617582569040,2.90695,2068.8,2068.4,5.07422932]
[1617582569241,2.90695,2068.5,2068.4,5.07422932]
[1617582570442,2.90695,2068.5,2068.3,5.07436619]
[1617582573549,2.90695,2068.5,2068.2,5.07472687]
[1617582573949,2.90695,2068.5,2068.1,5.07486947]
[1617582574548,2.90695,2068.5,2068.0,5.07524567]
[1617582575248,2.90695,2068.1,2068.0,5.07524567]
[1617582575448,4.86145,2068.1,2068.0,5.07524567]
[1617582576150,4.86145,2068.1,2068.0,2.87164567]
[1617582576551,4.86145,2068.1,2068.0,1.74774567]
[1617582577356,4.86145,2068.1,2067.8,6.20307804]
[1617582577754,4.86145,2068.1,2067.9,6.20539544]
[1617582580763,4.86145,2068.1,2067.8,6.20390894]
[1617582580968,64.5829,2068.0,2067.8,6.20390894]
[1617582583465,64.5829,2068.0,2067.9,6.20374936]
[1617582584165,64.5829,2068.0,2067.7,7.33136215]
[1617582585269,2.90695,2067.8,2067.7,7.33136215]
[1617582586770,2.90695,2067.8,2067.6,62.0406]
[1617582588072,2.90695,2067.8,2067.7,7.33032632]
[1617582588476,2.90695,2067.8,2067.6,62.0406]
[1617582588673,2.90695,2067.8,2067.4,8.45807809]
[1617582589074,2.90695,2067.8,2067.5,0.17654096]
[1617582590475,2.90695,2067.8,2067.4,0.17647341]
[1617582590774,2.90695,2067.8,2067.3,66.51592506]
[1617582590979,2.90695,2067.8,2067.4,8.63454826]
[1617582591377,64.5829,2068.0,2067.7,7.32759209]
[1617582593380,2.90695,2067.8,2067.7,7.32759209]
[1617582594383,2.90695,2067.8,2067.6,7.32775872]
[1617582594882,2.90695,2067.8,2067.7,7.32766396]
[1617582595082,2.90695,2067.8,2067.6,7.32775546]
[1617582595684,64.5829,2068.0,2067.6,7.32775546]
[1617582596282,2.90695,2067.7,2067.6,7.32775546]
[1617582598585,2.90695,2067.7,2067.3,11.36318682]
[1617582598984,2.90695,2067.7,2067.4,0.17712372]
[1617582599384,16.5898,2068.9,2067.4,30.17712372]
[1617582599585,13.9606,2068.9,2067.5,2.0]
[1617582599785,13.9606,2068.9,2068.4,5.07336312]
[1617582599984,13.0,2069.0,2068.7,56.4136]
[1617582600186,2.90695,2068.8,2068.7,56.4136]
[1617582602389,2.90695,2068.8,2068.6,5.07300586]
[1617582602590,2.90695,2068.8,2068.6,6.2091622]
[1617582602991,2.90695,2068.8,2068.7,5.08065132]
[1617582603392,2.90695,2068.8,2068.6,5.08077019]
[1617582604790,2.90695,2068.8,2068.6,4.98657019]
[1617582606993,2.90695,2068.8,2068.5,6.20986304]
[1617582608192,2.90695,2068.8,2068.4,6.20987058]
[1617582608391,2.90695,2068.8,2068.0,69.91012598]
[1617582608392,2.90695,2068.8,2068.5,6.20986521]
[1617582610895,2.90695,2068.8,2068.6,6.20941671]
[1617582612696,2.90695,2068.8,2068.7,6.20855387]
[1617582613096,2.90695,2068.8,2068.5,7.33698081]
[1617582613797,2.90695,2068.8,2068.6,7.33928122]
[1617582614198,2.90695,2068.8,2068.4,7.33167166]
[1617582614397,2.90695,2068.8,2068.6,2.90695]
[1617582614597,2.90695,2068.8,2068.5,7.33170635]
[1617582614998,2.90695,2068.8,2068.7,6.20448021]
[1617582615298,2.90695,2068.8,2068.6,6.20469502]
[1617582616997,2.90695,2068.8,2068.7,6.20457853]
[1617582621005,2.90695,2068.8,2068.6,6.20447812]
[1617582622007,5.01735,2068.8,2068.6,6.20447812]
[1617582622207,5.01735,2068.8,2068.7,5.07668549]
[1617582622809,5.01735,2068.8,2068.6,5.07696792]
[1617582623208,5.01735,2068.8,2068.5,5.07704985]
[1617582623912,5.01735,2068.8,2068.6,5.07700584]
[1617582624713,5.01735,2068.8,2068.5,5.07566878]
[1617582625813,5.01735,2068.8,2067.4,32.0]
[1617582625814,5.01735,2068.8,2068.6,5.07752]
[1617582627214,5.01735,2068.8,2068.5,5.07766619]
[1617582627514,5.01735,2068.8,2068.6,5.07774077]
[1617582628318,5.01735,2068.8,2068.5,5.0778061]
[1617582634827,5.01735,2068.8,2068.5,2.6681061]
[1617582635227,5.01735,2068.8,2068.2,6.20642988]
[1617582636329,5.01735,2068.8,2068.3,6.21066476]
[1617582636529,2.90695,2068.4,2068.3,6.21066476]
[1617582637129,2.90695,2068.4,2068.2,6.21093468]
[1617582637430,2.90695,2068.4,2068.0,6.21158093]
[1617582637929,2.90695,2068.4,2067.9,6.21155538]
[1617582638329,2.90695,2068.4,2068.0,6.21147093]
[1617582638529,2.90695,2068.1,2068.0,6.21147093]
[1617582638730,4.97255,2068.1,2067.7,7.34077961]
[1617582638930,5.92635,2068.1,2067.7,7.34077961]
[1617582639331,4.97255,2068.1,2067.7,7.34077961]
[1617582640330,5.94295,2068.1,2067.8,7.34040765]
[1617582640531,4.97255,2068.1,2067.8,7.34040765]
[1617582640730,4.97255,2068.1,2067.8,9.91140765]
[1617582641737,4.97255,2068.1,2067.8,2.571]
[1617582643433,5.94105,2068.1,2067.8,2.571]
[1617582643833,5.94105,2068.1,2067.8,9.9116121]
[1617582644032,4.97255,2068.1,2067.8,9.9116121]
[1617582644837,4.97255,2068.1,2068.0,7.34956458]
[1617582646337,4.97255,2068.1,2067.9,7.34972031]
[1617582647838,4.97255,2068.1,2067.8,8.28528973]
[1617582648041,4.97255,2068.1,2067.8,7.35038973]
[1617582648439,4.97255,2068.1,2067.4,8.48121892]
[1617582648640,2.90695,2067.5,2067.4,2.571]
[1617582648840,4.88895,2067.5,2067.4,2.571]
[1617582649642,4.88895,2067.5,2067.0,8.48255395]
[1617582650440,4.88895,2067.5,2066.9,8.48314051]
[1617582650639,2.90695,2067.0,2066.9,8.48314051]
[1617582650840,4.83875,2067.0,2066.9,8.48314051]
[1617582651640,4.83875,2067.0,2066.9,7.93504051]
[1617582652140,66.82025,2067.0,2066.9,7.93504051]
[1617582652342,66.82025,2067.0,2066.7,2.571]
[1617582652540,66.82025,2067.0,2066.4,9.61438638]
[1617582652742,5.29885,2066.5,2066.3,9.61573345]
[1617582653542,5.29885,2066.5,2066.2,9.6162911]
[1617582653945,5.29885,2066.5,2066.0,2.571]
[1617582654143,6.26635,2066.5,2066.0,2.571]
[1617582654742,2.90695,2066.1,2066.0,2.571]
[1617582658544,2.90695,2066.1,2065.2,13.32151901]
[1617582658747,2.90695,2065.3,2065.2,13.32151901]
[1617582658946,4.87055,2065.3,2065.2,2.571]
[1617582659146,4.87055,2065.3,2065.2,9.89167954]
[1617582660146,2.90695,2065.3,2065.2,9.89167954]
[1617582660746,2.90695,2065.3,2065.2,5.47795]
[1617582661647,2.90695,2065.3,2065.2,10.57595]
[1617582662549,2.90695,2065.3,2065.2,5.47795]
[1617582664755,2.90695,2065.7,2065.2,5.47795]
[1617582665156,2.90695,2065.7,2065.6,7.31982132]
[1617582665557,2.90695,2065.7,2065.5,7.31986533]
[1617582665856,2.90695,2065.7,2065.3,69.80147548]
[1617582666156,2.90695,2065.7,2065.4,7.31187686]
[1617582666657,2.90695,2065.7,2065.3,67.52503032]
[1617582666857,2.90695,2065.7,2065.6,2.90695]
[1617582667258,2.90695,2065.7,2065.6,9.09001061]
[1617582668158,2.90695,2065.7,2065.6,8.09001061]
[1617582669862,2.90695,2065.7,2065.6,1.90695]
[1617582670962,2.90695,2065.7,2065.6,8.08993733]
[1617582671163,2.90695,2065.7,2065.6,6.18298733]
[1617582671864,2.90695,2065.7,2065.5,6.18323271]
[1617582672062,5.51025,2065.7,2065.5,6.18323271]
[1617582673664,5.51025,2065.7,2065.4,6.18314526]
[1617582673865,5.51025,2065.7,2065.5,6.18319262]
[1617582675669,5.51025,2065.7,2065.6,5.05910406]
[1617582676469,5.51025,2065.7,2065.4,6.18334941]
[1617582676470,5.51025,2065.7,2065.5,5.0550194]
[1617582676769,5.51025,2065.7,2065.4,5.05513965]
[1617582677169,5.51025,2065.7,2065.5,5.05521711]
[1617582677575,5.51025,2065.7,2065.4,5.05296109]
[1617582677972,5.51025,2065.7,2065.3,5.05312239]
[1617582679171,2.90695,2065.4,2065.3,5.05312239]
[1617582679770,2.90695,2065.4,2065.2,7.6245091]
[1617582680872,2.90695,2065.4,2065.2,2.571]
[1617582682177,2.90695,2065.4,2065.2,7.62473547]
[1617582682376,2.90695,2065.4,2065.2,0.671]
[1617582682575,2.90695,2065.4,2065.1,5.05385738]
[1617582682775,2.90695,2065.4,2064.9,6.17670399]
[1617582682776,2.90695,2065.4,2065.0,5.05408046]
[1617582683374,4.89095,2065.1,2065.0,5.05408046]
[1617582683877,4.89095,2065.1,2064.9,7.62517728]
[1617582684578,5.87155,2065.1,2064.9,7.62517728]
[1617582684980,65.43745,2065.1,2064.9,7.62517728]
[1617582685580,65.43745,2065.1,2065.0,5.05421646]
[1617582686885,65.43745,2065.1,2064.9,2.571]
[1617582690997,65.43745,2065.1,2064.9,1.631]
[1617582691590,65.43745,2065.1,2064.4,2.571]
[1617582691790,5.87155,2065.1,2064.4,2.571]
[1617582692589,5.87155,2065.1,2063.9,7.6181641]
[1617582692794,5.87155,2065.1,2063.9,2.571]
[1617582693392,2.90695,2064.0,2063.9,2.571]
[1617582693592,4.70525,2064.0,2063.9,2.571]
[1617582693991,4.70525,2064.0,2063.9,7.61835786]
[1617582694391,2.90695,2064.0,2063.9,7.61835786]
[1617582694592,2.90695,2064.0,2063.9,38.7392263]
[1617582694794,2.90695,2064.0,2063.9,40.7392263]
[1617582694992,2.90695,2064.0,2063.9,34.571]
[1617582695993,0.9658,2065.2,2063.9,34.571]
[1617582696195,13.3831,2065.5,2064.9,63.3468]
[1617582696394,75.946,2066.0,2064.9,63.3468]
[1617582697394,2.90695,2065.0,2064.9,63.3468]
[1617582699798,2.90695,2065.0,2064.0,7.04067785]
[1617582700198,5.59685,2065.0,2064.0,7.04067785]
[1617582701102,5.59685,2065.0,2064.1,5.04051761]
[1617582701302,2.90695,2065.0,2064.1,5.04051761]
[1617582701501,2.90695,2064.2,2064.1,5.04051761]
[1617582702502,2.90695,2064.2,2064.0,2.0]
[1617582702904,2.90695,2064.2,2064.1,5.04037128]
[1617582704105,2.90695,2064.2,2064.1,6.16862175]
[1617582706208,2.90695,2064.2,2064.0,6.16903207]
[1617582706409,5.14385,2064.2,2064.0,6.16903207]
[1617582706611,5.14385,2064.2,2064.1,5.04738712]
[1617582707209,5.14385,2064.2,2064.1,5.22429167]
[1617582707409,5.14385,2064.2,2064.1,0.17690455]
[1617582707811,5.14385,2064.2,2064.1,6.1693366]
[1617582708210,5.14385,2064.2,2064.1,6.34625705]
[1617582708811,2.90695,2064.2,2064.1,6.34625705]
[1617582709113,2.90695,2064.2,2064.1,0.17692045]
[1617582709714,2.90695,2064.2,2064.0,0.1767179]
[1617582710914,0.01369129,2070.4,2064.0,0.1767179]
[1617582711115,27.1848,2066.3,2064.0,2.7807179]
[1617582711314,27.1848,2066.3,2064.2,30.0]
[1617582711515,27.1848,2066.3,2064.6,7.46962599]
[1617582712014,27.1848,2066.3,2064.7,0.17727697]
[1617582712216,27.1848,2066.3,2064.7,2.74827697]
[1617582712514,27.1848,2066.3,2064.7,7.79164626]
[1617582712716,27.1848,2066.3,2064.8,0.17726456]
[1617582713519,2.90695,2064.9,2064.8,0.17726456]
[1617582713920,2.90695,2064.9,2064.8,5.22036542]
[1617582714224,2.90695,2064.9,2064.8,0.17726456]
[1617582717225,2.90695,2064.9,2064.8,30.17726456]
[1617582717525,2.90695,2064.9,2064.8,33.08421456]
[1617582724033,2.90695,2064.9,2064.8,35.69751456]
[1617582724434,2.90695,2064.9,2064.8,37.69751456]
[1617582725734,2.90695,2064.9,2064.8,38.65301456]
[1617582725934,2.90695,2064.9,2064.8,37.69751456]
[1617582726338,2.90695,2064.9,2064.8,44.99333816]
[1617582726735,27.1848,2066.3,2064.8,37.69751456]
[1617582726936,0.9613,2066.4,2064.8,37.69751456]
[1617582727135,0.9613,2066.4,2065.8,5.06099846]
[1617582727334,107.0186,2067.1,2065.8,5.06099846]
[1617582727539,2.90695,2065.9,2065.8,5.06099846]
[1617582728534,2.90695,2065.9,2065.7,6.18529073]
[1617582730033,2.90695,2065.9,2065.6,6.18526742]
[1617582730435,2.90695,2065.9,2065.8,5.06072146]
[1617582731134,2.90695,2065.9,2065.7,5.0607843]
[1617582732335,2.90695,2065.9,2065.8,5.06080891]
[1617582734436,2.90695,2065.9,2065.6,6.18543311]
[1617582734939,2.90695,2065.9,2065.7,6.18516921]
[1617582736338,2.90695,2065.9,2065.8,6.1850647]
[1617582736539,2.90695,2065.9,2065.8,6.36251911]
[1617582737339,2.90695,2065.9,2065.8,0.17745441]
[1617582737740,2.90695,2065.9,2065.8,2.90695]
[1617582738141,2.90695,2065.9,2065.8,3.08438837]
[1617582738341,2.90695,2065.9,2065.8,0.17743837]
[1617582739741,2.90695,2065.9,2065.8,3.08438837]
[1617582745048,2.90695,2065.9,2065.8,2.90695]
[1617582745448,2.90695,2065.9,2065.8,3.08406807]
[1617582746147,2.90695,2065.9,2065.8,2.90695]
[1617582746547,2.90695,2065.9,2065.6,8.46993928]
[1617582746949,2.90695,2065.9,2065.5,8.47067536]
[1617582747148,2.90695,2065.9,2065.7,7.34203086]
[1617582747348,2.90695,2065.9,2065.7,5.42203086]
[1617582747550,2.90695,2065.9,2065.3,8.47157407]
[1617582747754,2.90695,2065.9,2065.2,2.571]
[1617582747951,4.74285,2065.4,2065.2,2.571]
[1617582749654,83.71335,2065.4,2065.2,2.571]
[1617582754158,83.71335,2065.4,2065.0,8.47254084]
[1617582754757,83.71335,2065.4,2065.1,0.17731008]
[1617582755759,83.71335,2065.4,2065.1,8.65614473]
[1617582756159,83.71335,2065.4,2065.1,8.47883465]
[1617582756560,83.71335,2065.4,2065.0,8.47905664]
[1617582757362,83.71335,2065.4,2064.9,8.4794544]
[1617582757763,83.71335,2065.4,2065.3,7.34893444]
[1617582761966,83.71335,2065.4,2065.3,6.39893444]
[1617582766370,113.71335,2065.4,2065.3,6.39893444]
[1617582766671,113.71335,2065.4,2064.6,2.571]
[1617582766672,113.71335,2065.4,2065.0,8.48568706]
[1617582768074,2.90695,2065.1,2065.0,8.48568706]
[1617582768277,3.86605,2065.1,2065.0,8.48568706]
[1617582768476,3.86605,2065.1,2064.8,8.48651581]
[1617582768976,3.86605,2065.1,2064.7,8.48668039]
[1617582770076,2.90695,2064.8,2064.7,8.48668039]
[1617582770277,5.07865,2064.8,2064.7,8.48668039]
[1617582770479,5.07865,2064.8,2064.6,11.05808225]
[1617582771481,5.07865,2064.8,2064.6,2.571]
[1617582774091,2.90695,2064.8,2064.6,11.05278383]
[1617582775392,2.90695,2064.8,2064.7,8.48123975]
[1617582776393,2.90695,2064.8,2064.6,2.571]
[1617582776592,5.35885,2064.8,2064.5,8.48178063]
[1617582779795,72.4323,2064.6,2064.5,8.48178063]
[1617582781603,74.6322,2064.6,2064.5,8.48178063]
[1617582781806,2.1999,2064.6,2064.5,8.48178063]
[1617582782002,2.1999,2064.6,2064.4,7.51010903]
[1617582782204,2.90695,2064.5,2064.4,7.51010903]
[1617582782406,32.90695,2064.5,2063.9,9.61136514]
[1617582782800,32.90695,2064.5,2063.7,12.28280172]
[1617582783200,32.90695,2064.5,2064.2,7.34265029]
[1617582783400,32.90695,2064.5,2063.7,4.571]
[1617582783401,65.2634,2064.2,2063.7,4.571]